bitfinex/quotes_SOLUSD_20241229
["timestamp","ask_amount","ask_price","bid_price","bid_amount"]
[1735439953432,23.776884,194.2,194.04,8.1181]
[1735439953636,23.776884,194.2,194.07,20.0]
[1735439955758,23.776884,194.16,194.04,8.1181]
[1735439961758,9.73340186,194.21,194.07,20.0]
[1735439961968,9.73340186,194.21,194.08,20.0]
[1735439962278,23.776884,194.2,194.08,20.0]
[1735439965965,23.776884,194.2,194.07,20.0]
[1735439966146,23.776884,194.2,194.08,20.0]
[1735439967361,23.776884,194.2,194.07,20.0]
[1735439967547,20.0,194.17,194.04,14.0181]
[1735439967753,23.776884,194.16,194.04,14.0181]
[1735439972271,23.776884,194.16,194.04,8.1181]
[1735439980853,8.10980186,194.17,194.08,20.0]
[1735439981056,23.776884,194.16,194.08,20.0]
[1735439981454,8.10980186,194.17,194.08,20.0]
[1735439981758,8.10980186,194.2,194.08,20.0]
[1735439982260,23.776884,194.19,194.08,20.0]
[1735439984581,23.776884,194.19,194.07,20.0]
[1735439985978,23.776884,194.19,194.08,20.0]
[1735439989285,8.10980186,194.2,194.09,1.6226]
[1735439991193,23.776884,194.19,194.09,1.6226]
[1735439991889,31.88668586,194.19,194.09,1.6226]
[1735439993682,31.88668586,194.19,194.04,8.2439]
[1735439993888,23.776884,194.15,194.04,8.2439]
[1735439995067,23.776884,194.15,194.04,9.01674747]
[1735439995266,23.776884,194.15,194.07,20.0]
[1735439995566,23.776884,194.16,194.07,20.0]
[1735439996389,23.776884,194.17,194.07,20.0]
[1735439996893,31.88668586,194.17,194.07,20.0]
[1735439999087,23.776884,194.15,194.07,20.0]
[1735439999796,8.10980186,194.15,194.09,20.0]
[1735440000094,8.10980186,194.16,194.09,20.0]
[1735440000396,23.776884,194.15,194.09,20.0]
[1735440000897,8.10980186,194.17,194.09,20.0]
[1735440003070,23.776884,194.15,194.09,20.0]
[1735440003696,8.10980186,194.17,194.09,20.0]
[1735440005096,31.88668586,194.17,194.09,20.0]
[1735440005294,23.776884,194.15,194.09,20.0]
[1735440007403,23.776884,194.13,194.07,20.0]
[1735440008300,23.776884,194.13,194.04,8.2439]
[1735440009280,23.776884,194.11,194.04,8.2439]
[1735440010200,31.88668586,194.11,194.04,8.2439]
[1735440011601,31.88668586,194.11,194.03,20.0]
[1735440012103,23.776884,194.09,194.03,20.0]
[1735440012774,23.776884,194.1,194.0,6.342]
[1735440013395,31.88668586,194.1,194.0,6.342]
[1735440017428,23.776884,194.1,194.0,6.342]
[1735440020690,31.88668586,194.1,194.0,6.342]
[1735440022013,23.776884,194.1,194.0,6.342]
[1735440022711,8.10980186,194.11,194.0,6.342]
[1735440022907,8.10980186,194.11,194.02,10.19057954]
[1735440023090,8.10980186,194.11,194.02,10.9634249]
[1735440023291,23.776884,194.1,194.02,10.9634249]
[1735440023691,23.776884,194.12,194.02,10.9634249]
[1735440024319,23.776884,194.13,194.02,10.9634249]
[1735440024609,23.776884,194.13,194.03,10.19057954]
[1735440024792,23.776884,194.13,194.04,0.77280211]
[1735440024993,23.776884,194.13,194.05,1.6401]
[1735440025295,23.776884,194.15,194.05,1.6401]
[1735440025838,23.776884,194.15,194.06,20.0]
[1735440026593,23.776884,194.16,194.06,20.0]
[1735440028215,8.10980186,194.17,194.07,16.59247954]
[1735440028421,8.10980186,194.17,194.08,20.77263474]
[1735440028930,23.776884,194.16,194.08,20.77263474]
[1735440030123,23.776884,194.19,194.08,20.77263474]
[1735440031223,31.88668586,194.19,194.08,20.77263474]
[1735440031726,23.776884,194.19,194.08,20.77263474]
[1735440032035,23.776884,194.19,194.09,20.0]
[1735440033319,23.776884,194.19,194.08,20.77263474]
[1735440033511,23.776884,194.19,194.08,30.96321428]
[1735440034214,23.776884,194.19,194.09,10.19057954]
[1735440034441,8.10980186,194.22,194.1,0.77251113]
[1735440035924,23.776884,194.21,194.1,0.77251113]
[1735440037727,23.776884,194.21,194.13,20.0]
[1735440040128,23.776884,194.21,194.11,20.0]
[1735440041139,23.776884,194.22,194.11,20.0]
[1735440042429,23.776884,194.22,194.08,10.19057954]
[1735440042604,23.776884,194.22,194.07,23.26511359]
[1735440043028,31.88668586,194.22,194.1,20.0]
[1735440043640,8.10980186,194.21,194.1,20.0]
[1735440044237,8.10980186,194.21,194.07,12.3019]
[1735440044537,8.10980186,194.21,194.1,20.0]
[1735440044716,8.10980186,194.21,194.11,20.0]
[1735440044918,8.10980186,194.21,194.12,20.0]
[1735440045132,31.88668586,194.19,194.12,20.0]
[1735440045820,23.776884,194.2,194.11,20.0]
[1735440050037,23.776884,194.21,194.11,20.0]
[1735440051239,23.776884,194.21,194.12,20.0]
[1735440052142,23.776884,194.22,194.12,20.0]
[1735440053741,23.776884,194.22,194.11,1.5512]
[1735440054040,23.776884,194.22,194.11,21.5512]
[1735440056948,23.776884,194.22,194.12,20.0]
[1735440057724,23.776884,194.23,194.12,20.0]
[1735440060140,23.776884,194.23,194.11,21.5512]
[1735440062724,23.776884,194.23,194.12,0.77254631]
[1735440063840,23.776884,194.23,194.13,20.0]
[1735440064342,23.776884,194.23,194.12,0.77254631]
[1735440064541,8.10980186,194.24,194.17,20.0]
[1735440065245,23.776884,194.23,194.17,20.0]
[1735440065444,8.10980186,194.24,194.17,20.0]
[1735440065648,8.10980186,194.27,194.17,20.0]
[1735440066447,23.776884,194.26,194.17,20.0]
[1735440068046,23.776884,194.26,194.18,20.0]
[1735440068225,23.776884,194.26,194.19,20.0]
[1735440068837,23.776884,194.28,194.19,20.0]
[1735440069153,23.776884,194.28,194.18,0.77224477]
[1735440069154,23.776884,194.28,194.18,20.77224477]
[1735440069326,8.10980186,194.29,194.19,16.82727954]
[1735440069527,8.10980186,194.29,194.23,20.0]
[1735440070158,23.776884,194.28,194.22,20.0]
[1735440070463,23.776884,194.31,194.22,20.0]
[1735440071044,8.10980186,194.33,194.22,20.0]
[1735440071045,23.776884,194.32,194.22,20.0]
[1735440071933,23.776884,194.33,194.22,20.0]
[1735440072135,23.776884,194.34,194.22,20.0]
[1735440072646,8.10980186,194.33,194.22,20.0]
[1735440073435,8.10980186,194.32,194.22,20.0]
[1735440074149,23.776884,194.3,194.22,20.0]
[1735440074657,9.25377594,194.35,194.22,20.0]
[1735440075151,23.776884,194.34,194.22,20.0]
[1735440075855,23.776884,194.31,194.22,20.0]
[1735440077155,23.776884,194.32,194.22,20.0]
[1735440078531,23.776884,194.33,194.22,20.0]
[1735440079253,23.776884,194.33,194.23,20.0]
[1735440081453,23.776884,194.33,194.22,20.0]
[1735440088336,23.776884,194.33,194.19,6.6367]
[1735440089253,23.776884,194.31,194.19,6.6367]
[1735440089935,31.86481715,194.31,194.19,6.6367]
[1735440090661,23.776884,194.32,194.19,6.6367]
[1735440091158,31.86481715,194.33,194.19,6.6367]
[1735440092052,23.776884,194.33,194.19,6.6367]
[1735440092267,23.776884,194.33,194.2,0.77221699]
[1735440092561,8.08793315,194.34,194.24,1.6419]
[1735440092859,8.08793315,194.34,194.24,21.6419]
[1735440093166,23.776884,194.33,194.24,21.6419]
[1735440093865,23.776884,194.34,194.24,21.6419]
[1735440094463,23.776884,194.35,194.24,21.6419]
[1735440094963,23.776884,194.35,194.24,1.6419]
[1735440100371,23.776884,194.35,194.24,21.6419]
[1735440100559,23.776884,194.35,194.24,1.6419]
[1735440105076,23.776884,194.35,194.24,21.6419]
[1735440105470,23.776884,194.35,194.24,1.6419]
[1735440105770,31.86481715,194.35,194.24,1.6419]
[1735440106676,23.776884,194.33,194.24,1.6419]
[1735440109261,23.776884,194.33,194.2,1.5879]
[1735440109661,23.776884,194.33,194.22,20.0]
[1735440109871,23.776884,194.33,194.2,1.5879]
[1735440110054,23.776884,194.31,194.2,1.5879]
[1735440110981,23.776884,194.29,194.2,1.5879]
[1735440113590,31.86481715,194.29,194.2,1.5879]
[1735440115983,23.776884,194.27,194.2,1.5879]
[1735440118083,31.86481715,194.27,194.2,1.5879]
[1735440119182,8.08793315,194.27,194.22,20.0]
[1735440119372,8.08793315,194.27,194.24,20.0]
[1735440119573,11.96237772,194.3,194.26,20.0]
[1735440119783,8.08793315,194.3,194.26,20.0]
[1735440120292,23.776884,194.31,194.26,20.0]
[1735440120491,23.776884,194.31,194.24,30.19057954]
[1735440120666,23.776884,194.31,194.25,0.77196451]
[1735440121186,23.776884,194.32,194.25,0.77196451]
[1735440121688,23.776884,194.32,194.27,1.5758]
[1735440122305,23.776884,194.33,194.27,1.5758]
[1735440122490,8.08793315,194.34,194.27,2.34772104]
[1735440123194,23.776884,194.33,194.27,2.34772104]
[1735440125695,23.776884,194.34,194.27,2.34772104]
[1735440126195,23.776884,194.34,194.29,20.0]
[1735440127265,23.776884,194.35,194.29,20.0]
[1735440127473,8.08793315,194.36,194.35,20.0]
[1735440127679,8.08793315,194.36,194.35,36.09057954]
[1735440127880,8.08793315,194.36,194.35,53.38726167]
[1735440128689,23.776884,194.47,194.35,53.38726167]
[1735440128892,23.776884,194.47,194.41,20.0]
[1735440129109,8.08793315,194.48,194.42,30.19057954]
[1735440129272,8.08793315,194.48,194.44,10.19057954]
[1735440129473,8.08793315,194.48,194.47,20.0]
[1735440129786,8.08793315,194.58,194.47,47.48726167]
[1735440130096,8.08793315,194.58,194.54,10.19057954]
[1735440130277,8.08793315,194.58,194.55,10.19057954]
[1735440130477,8.08793315,194.58,194.57,10.19057954]
[1735440131279,23.776884,194.59,194.57,10.19057954]
[1735440131779,1.6544,194.67,194.57,10.19057954]
[1735440132281,1.6544,194.67,194.63,10.19057954]
[1735440132474,23.776884,194.66,194.57,20.0]
[1735440132681,23.776884,194.66,194.59,10.19057954]
[1735440132999,1.6544,194.67,194.6,10.19057954]
[1735440133503,23.776884,194.66,194.6,10.19057954]
[1735440134178,24.19246,194.7,194.61,10.19057954]
[1735440134381,24.19246,194.7,194.62,10.19057954]
[1735440134778,24.19246,194.7,194.6,10.19057954]
[1735440134978,23.776884,194.69,194.6,10.19057954]
[1735440142906,23.776884,194.69,194.62,10.19057954]
[1735440143483,17.78576,194.7,194.62,10.19057954]
[1735440143679,23.776884,194.69,194.62,10.19057954]
[1735440143885,17.78576,194.7,194.62,10.19057954]
[1735440144404,23.776884,194.69,194.63,20.0]
[1735440144612,23.776884,194.69,194.62,10.19057954]
[1735440145003,23.776884,194.69,194.65,20.0]
[1735440145909,23.776884,194.69,194.63,10.19057954]
[1735440147109,23.776884,194.69,194.62,10.19057954]
[1735440147497,23.776884,194.69,194.64,20.0]
[1735440150908,23.776884,194.69,194.54,6.545]
[1735440151113,23.776884,194.69,194.57,10.19057954]
[1735440151408,23.776884,194.69,194.6,20.0]
[1735440152214,23.776884,194.69,194.57,10.19057954]
[1735440156814,23.776884,194.69,194.59,20.0]
[1735440157821,25.408784,194.69,194.59,20.0]
[1735440157993,25.408784,194.69,194.58,20.0]
[1735440158417,25.408784,194.69,194.59,20.0]
[1735440162407,25.408784,194.69,194.58,20.0]
[1735440163219,25.408784,194.69,194.57,20.0]
[1735440167211,25.408784,194.69,194.59,20.0]
[1735440168530,25.408784,194.69,194.58,20.0]
[1735440174909,25.408784,194.69,194.59,20.0]
[1735440180040,23.776884,194.67,194.59,20.0]
[1735440180937,23.776884,194.65,194.59,20.0]
[1735440182740,23.776884,194.65,194.54,6.545]
[1735440183440,23.776884,194.63,194.54,6.545]
[1735440184030,23.776884,194.61,194.54,6.545]
[1735440186546,23.776884,194.61,194.52,1.6599]
[1735440187726,23.776884,194.59,194.52,1.6599]
[1735440188326,23.776884,194.6,194.52,1.6599]
[1735440188965,23.776884,194.6,194.49,6.3702]
[1735440191656,23.776884,194.6,194.47,1.5863]
[1735440191962,23.776884,194.56,194.47,1.5863]
[1735440192625,23.776884,194.56,194.45,10.19057954]
[1735440194059,23.776884,194.56,194.44,16.30227954]
[1735440194559,23.776884,194.56,194.45,10.19057954]
[1735440194860,23.776884,194.56,194.44,6.1117]
[1735440195158,23.776884,194.56,194.44,16.30227954]
[1735440195536,23.776884,194.56,194.44,6.1117]
[1735440199367,23.776884,194.54,194.44,6.1117]
[1735440203976,23.776884,194.54,194.42,1.5863]
[1735440209558,23.776884,194.54,194.4,6.1707]
[1735440216176,23.776884,194.5,194.4,6.1707]
[1735440218895,23.776884,194.5,194.37,1.6202]
[1735440223901,23.776884,194.46,194.37,1.6202]
[1735440226986,9.61953315,194.52,194.39,20.0]
[1735440227293,8.08793315,194.52,194.4,36.79587954]
[1735440227475,8.08793315,194.56,194.4,37.56722988]
[1735440228601,8.08793315,194.56,194.41,10.19057954]
[1735440228776,23.776884,194.55,194.42,10.19057954]
[1735440229190,23.776884,194.56,194.42,10.19057954]
[1735440229505,1.5316,194.57,194.44,1.5621]
[1735440229689,23.776884,194.56,194.44,1.5621]
[1735440230678,23.776884,194.56,194.46,20.0]
[1735440233101,11.9583313,194.59,194.48,20.0]
[1735440233800,23.776884,194.58,194.48,20.0]
[1735440233999,8.08793315,194.59,194.49,18.99619024]
[1735440234575,23.776884,194.6,194.49,18.99619024]
[1735440234921,23.776884,194.61,194.49,18.99619024]
[1735440235506,23.776884,194.63,194.49,18.99619024]
[1735440236301,23.776884,194.63,194.49,8.8056107]
[1735440236602,20.0,194.6,194.49,8.0345]
[1735440236898,1.5521,194.59,194.49,8.0345]
[1735440237205,23.776884,194.58,194.49,8.0345]
[1735440238201,31.86481715,194.58,194.49,8.0345]
[1735440239984,31.86481715,194.58,194.49,6.4971]
[1735440241988,23.776884,194.56,194.49,6.4971]
[1735440244808,23.776884,194.57,194.49,6.4971]
[1735440245792,31.86481715,194.58,194.49,6.4971]
[1735440245998,23.776884,194.57,194.49,6.4971]
[1735440249415,31.86481715,194.57,194.49,6.4971]
[1735440250422,23.776884,194.57,194.49,6.4971]
[1735440252419,23.776884,194.55,194.49,6.4971]
[1735440253722,23.776884,194.56,194.49,6.4971]
[1735440254432,23.776884,194.57,194.49,6.4971]
[1735440254914,31.86481715,194.57,194.49,6.4971]
[1735440255524,23.776884,194.57,194.49,6.4971]
[1735440261528,23.776884,194.58,194.49,6.4971]
[1735440264505,23.776884,194.56,194.49,6.4971]
[1735440265427,23.776884,194.57,194.49,6.4971]
[1735440271533,31.86481715,194.57,194.49,6.4971]
[1735440272532,31.86481715,194.57,194.44,7.6217]
[1735440273433,23.776884,194.53,194.44,7.6217]
[1735440274928,31.86481715,194.53,194.44,7.6217]
[1735440276945,31.86481715,194.53,194.39,8.1875]
[1735440277317,23.776884,194.51,194.39,8.1875]
[1735440278052,31.86481715,194.48,194.39,8.1875]
[1735440278950,23.776884,194.46,194.39,8.1875]
[1735440281157,23.776884,194.47,194.39,8.1875]
[1735440282528,8.08793315,194.48,194.39,8.1875]
[1735440282960,8.08793315,194.47,194.39,8.1875]
[1735440284069,31.86481715,194.48,194.39,8.1875]
[1735440290769,23.776884,194.48,194.39,8.1875]
[1735440292140,23.776884,194.48,194.39,18.37807954]
[1735440292965,23.776884,194.49,194.39,18.37807954]
[1735440293658,23.776884,194.5,194.39,18.37807954]
[1735440294063,23.776884,194.5,194.39,8.1875]
[1735440294460,23.776884,194.5,194.39,18.37807954]
[1735440294672,23.776884,194.5,194.39,8.1875]
[1735440294847,8.08793315,194.51,194.42,20.0]
[1735440295047,8.08793315,194.51,194.42,30.19057954]
[1735440295252,8.08793315,194.51,194.45,10.19057954]
[1735440295457,8.08793315,194.52,194.45,10.19057954]
[1735440295957,23.776884,194.52,194.45,10.19057954]
[1735440296360,23.88278349,194.54,194.45,10.19057954]
[1735440297866,23.88278349,194.54,194.47,20.0]
[1735440298861,23.88278349,194.54,194.46,6.1634]
[1735440299069,23.88278349,194.54,194.46,26.1634]
[1735440300464,0.10589949,194.54,194.46,26.1634]
[1735440304256,0.10589949,194.54,194.46,27.7048]
[1735440304458,0.10589949,194.54,194.49,20.0]
[1735440308887,0.10589949,194.54,194.51,20.0]
[1735440311777,0.10589949,194.54,194.51,0.77097883]
[1735440311977,0.10589949,194.54,194.51,10.96155837]
[1735440313854,0.10589949,194.54,194.51,0.77097883]
[1735440314772,0.10589949,194.54,194.5,25.9]
[1735440314985,0.10589949,194.54,194.5,20.0]
[1735440316485,0.10589949,194.54,194.51,20.0]
[1735440316661,0.10589949,194.54,194.52,20.0]
[1735440316980,0.10589949,194.54,194.52,20.77092082]
[1735440317157,0.10589949,194.54,194.53,20.0]
[1735440317756,0.10589949,194.54,194.53,28.0443]
[1735440319158,23.776884,194.64,194.53,28.0443]
[1735440319766,23.776884,194.64,194.53,26.4388]
[1735440319967,23.776884,194.64,194.53,20.0]
[1735440320884,31.86481715,194.64,194.53,20.0]
[1735440323016,23.776884,194.64,194.53,20.0]
[1735440324094,23.776884,194.64,194.51,20.0]
[1735440324395,23.776884,194.64,194.53,20.0]
[1735440325691,23.776884,194.64,194.51,20.0]
[1735440327392,23.776884,194.64,194.52,20.0]
[1735440327613,23.776884,194.64,194.52,20.77096272]
[1735440329099,23.776884,194.64,194.52,20.0]
[1735440336196,31.86481715,194.64,194.52,20.0]
[1735440337086,23.776884,194.64,194.52,20.0]
[1735440337900,31.86481715,194.64,194.52,20.0]
[1735440339775,23.776884,194.62,194.52,20.0]
[1735440342386,8.08793315,194.63,194.52,20.0]
[1735440342586,8.08793315,194.63,194.54,20.0]
[1735440342790,8.08793315,194.62,194.54,20.0]
[1735440343200,8.08793315,194.62,194.52,30.96153202]
[1735440343496,31.86481715,194.63,194.52,30.96153202]
[1735440344607,23.776884,194.63,194.52,30.96153202]
[1735440345096,23.776884,194.63,194.52,36.86153202]
[1735440345471,23.776884,194.63,194.55,6.0566]
[1735440346802,31.86481715,194.63,194.55,6.0566]
[1735440347107,31.86481715,194.63,194.56,1.5932]
[1735440352407,23.776884,194.61,194.53,5.9]
[1735440353191,23.776884,194.59,194.51,1.6311]
[1735440353395,23.776884,194.59,194.53,20.0]
[1735440354102,31.86481715,194.59,194.53,20.0]
[1735440355505,23.776884,194.57,194.53,20.0]
[1735440358484,8.08793315,194.59,194.53,20.0]
[1735440359925,23.776884,194.57,194.53,20.0]
[1735440362324,31.86481715,194.59,194.53,20.0]
[1735440363828,8.08793315,194.58,194.53,20.0]
[1735440364012,23.776884,194.57,194.53,20.0]
[1735440365125,23.776884,194.57,194.54,20.0]
[1735440365331,8.08793315,194.58,194.56,20.0]
[1735440365630,8.08793315,194.58,194.56,36.8613807]
[1735440365834,8.08793315,194.58,194.57,22.42447954]
[1735440366034,8.08793315,194.63,194.57,22.42447954]
[1735440366327,23.776884,194.62,194.57,12.2339]
[1735440366715,23.776884,194.62,194.57,5.9]
[1735440366916,23.776884,194.62,194.52,6.6135]
[1735440367322,23.776884,194.62,194.53,0.77090322]
[1735440367632,23.776884,194.59,194.53,0.77090322]
[1735440368652,23.776884,194.59,194.55,20.0]
[1735440368811,8.08793315,194.6,194.57,20.0]
[1735440369448,23.776884,194.6,194.57,20.0]
[1735440369636,8.08793315,194.61,194.57,20.0]
[1735440371238,23.776884,194.6,194.57,20.0]
[1735440371420,23.776884,194.6,194.55,5.9]
[1735440372059,8.08793315,194.58,194.55,5.9]
[1735440372739,31.86481715,194.6,194.55,5.9]
[1735440374027,31.86481715,194.6,194.55,6.6707665]
[1735440374227,31.86481715,194.6,194.55,5.9]
[1735440374734,23.776884,194.61,194.55,5.9]
[1735440375135,23.776884,194.61,194.55,20.0]
[1735440375446,31.86481715,194.61,194.55,20.0]
[1735440375946,23.776884,194.61,194.55,20.0]
[1735440376543,31.86481715,194.61,194.55,20.0]
[1735440376743,31.86481715,194.61,194.57,20.0]
[1735440377249,23.776884,194.61,194.57,20.0]
[1735440377432,23.776884,194.63,194.57,20.0]
[1735440377952,23.776884,194.63,194.58,20.0]
[1735440378447,23.776884,194.64,194.58,20.0]
[1735440378634,8.08793315,194.65,194.58,20.0]
[1735440379448,23.776884,194.64,194.58,20.0]
[1735440380151,23.776884,194.64,194.56,0.77085102]
[1735440380343,23.776884,194.64,194.55,25.9]
[1735440380930,8.08793315,194.63,194.55,25.9]
[1735440381745,23.776884,194.61,194.55,20.0]
[1735440382854,23.776884,194.61,194.55,20.77080589]
[1735440383033,23.776884,194.63,194.55,20.77080589]
[1735440383651,8.08793315,194.64,194.55,30.96138543]
[1735440384354,23.776884,194.63,194.55,36.86138543]
[1735440384948,23.776884,194.64,194.55,36.86138543]
[1735440386361,23.776884,194.64,194.58,25.9]
[1735440386650,23.776884,194.64,194.58,26.67066328]
[1735440387357,31.86481715,194.66,194.58,26.67066328]
[1735440387841,23.776884,194.65,194.58,25.9]
[1735440388458,23.776884,194.67,194.58,25.9]
[1735440388828,31.86481715,194.67,194.58,25.9]
[1735440392358,23.776884,194.65,194.58,25.9]
[1735440396267,23.776884,194.65,194.59,20.0]
[1735440396964,23.776884,194.67,194.59,20.0]
[1735440398470,23.776884,194.65,194.59,20.0]
[1735440399165,31.86481715,194.65,194.59,20.0]
[1735440399760,31.86481715,194.65,194.56,5.9]
[1735440400755,8.08793315,194.64,194.56,6.67073036]
[1735440401468,23.776884,194.63,194.56,6.67073036]
[1735440401973,8.08793315,194.64,194.56,16.8613099]
[1735440402358,8.08793315,194.64,194.57,11.78337954]
[1735440402543,8.08793315,194.64,194.58,17.27345226]
[1735440402973,23.776884,194.67,194.58,17.27345226]
[1735440403268,23.776884,194.67,194.62,20.0]
[1735440403659,23.776884,194.68,194.62,20.0]
[1735440404963,23.776884,194.69,194.61,20.0]
[1735440406476,8.08793315,194.68,194.61,20.0]
[1735440407484,23.776884,194.66,194.61,20.0]
[1735440412169,31.86481715,194.66,194.61,20.0]
[1735440412670,8.08793315,194.66,194.61,20.0]
[1735440412874,8.08793315,194.66,194.61,20.77054561]
[1735440413174,31.86481715,194.68,194.61,20.77054561]
[1735440413469,23.776884,194.67,194.61,20.77054561]
[1735440413773,23.776884,194.67,194.61,20.0]
[1735440414271,23.776884,194.67,194.61,25.9]
[1735440414973,31.86481715,194.69,194.61,25.9]
[1735440415773,23.776884,194.68,194.61,25.9]
[1735440416776,31.86481715,194.68,194.61,25.9]
[1735440418076,23.776884,194.68,194.61,25.9]
[1735440419677,23.776884,194.65,194.61,20.0]
[1735440420247,23.776884,194.65,194.58,12.98299437]
[1735440420467,23.776884,194.65,194.58,5.9]
[1735440421180,23.776884,194.63,194.58,5.9]
[1735440421563,31.86481715,194.63,194.58,5.9]
[1735440422277,31.86481715,194.63,194.57,20.0]
[1735440422489,23.776884,194.64,194.57,20.0]
[1735440422877,31.86481715,194.65,194.57,20.0]
[1735440423179,23.776884,194.64,194.57,20.0]
[1735440423877,8.08793315,194.63,194.57,20.0]
[1735440428185,31.86481715,194.64,194.57,20.0]
[1735440429182,8.08793315,194.63,194.57,20.0]
[1735440429687,8.08793315,194.63,194.54,13.23179742]
[1735440432601,23.776884,194.62,194.54,13.23179742]
[1735440435901,8.08793315,194.64,194.54,13.23179742]
[1735440436698,8.08793315,194.63,194.54,13.23179742]
[1735440436997,23.776884,194.62,194.57,20.0]
[1735440437380,8.08793315,194.64,194.57,20.0]
[1735440439786,6.58793315,194.64,194.57,20.0]
[1735440440113,23.776884,194.63,194.57,20.0]
[1735440440814,23.776884,194.65,194.57,20.0]
[1735440442200,21.776884,194.65,194.57,20.0]
[1735440444605,20.276884,194.65,194.57,20.0]
[1735440446631,20.276884,194.65,194.54,13.23179742]
[1735440446906,20.276884,194.65,194.54,12.4611]
[1735440447408,23.776884,194.63,194.54,12.4611]
[1735440448215,23.776884,194.61,194.54,5.9]
[1735440448439,23.776884,194.56,194.4,5.9]
[1735440448720,1.5772,194.5,194.36,28.04630677]
[1735440449082,23.776884,194.49,194.36,28.04630677]
[1735440449716,23.776884,194.49,194.36,12.0776]
[1735440450623,23.776884,194.47,194.36,12.0776]
[1735440451229,23.776884,194.48,194.36,12.0776]
[1735440451391,23.776884,194.48,194.39,20.0]
[1735440452993,23.776884,194.48,194.36,5.9]
[1735440453203,23.776884,194.48,194.32,12.0776]
[1735440453708,23.776884,194.48,194.35,20.0]
[1735440456317,6.4281,194.49,194.35,20.0]
[1735440457422,23.776884,194.48,194.35,20.0]
[1735440459314,23.776884,194.48,194.35,25.9]
[1735440460148,6.4281,194.49,194.35,25.9]
[1735440460333,1.5772,194.5,194.35,36.09057954]
[1735440461105,23.776884,194.49,194.35,36.09057954]
[1735440461621,23.776884,194.49,194.35,25.9]
[1735440464923,23.776884,194.49,194.35,36.09057954]
[1735440465104,23.776884,194.49,194.35,36.86207557]
[1735440471425,23.776884,194.49,194.39,20.0]
[1735440487441,23.776884,194.49,194.36,7.4404]
[1735440489438,23.776884,194.49,194.36,1.5404]
[1735440492540,43.776884,194.45,194.32,12.0776]
[1735440492842,23.776884,194.43,194.32,12.0776]
[1735440494629,23.776884,194.43,194.32,6.1776]
[1735440494927,23.776884,194.43,194.3,21.5955]
[1735440495148,23.776884,194.43,194.3,1.5955]
[1735440495149,23.776884,194.39,194.3,1.5955]
[1735440495330,23.776884,194.39,194.27,12.2832]
[1735440502681,16.17586631,194.41,194.29,10.19057954]
[1735440502957,23.776884,194.41,194.29,10.19057954]
[1735440504155,32.35173263,194.43,194.29,10.19057954]
[1735440504156,23.776884,194.42,194.32,20.0]
[1735440504653,23.776884,194.43,194.32,20.0]
[1735440504951,17.83976631,194.44,194.32,20.0]
[1735440505357,17.83976631,194.44,194.32,21.5665]
[1735440505531,23.776884,194.43,194.32,21.5665]
[1735440510369,23.776884,194.43,194.32,27.4665]
[1735440516453,23.776884,194.43,194.32,1.5665]
[1735440516964,23.776884,194.43,194.31,20.0]
[1735440517164,39.95275031,194.43,194.31,20.0]
[1735440518175,23.776884,194.41,194.31,20.0]
[1735440518476,23.776884,194.41,194.28,7.4902]
[1735440518976,23.776884,194.41,194.28,1.5902]
[1735440519979,23.776884,194.39,194.28,1.5902]
[1735440522079,23.776884,194.35,194.22,11.9638]
[1735440522449,23.776884,194.35,194.23,10.19057954]
[1735440522655,23.776884,194.35,194.24,10.96250025]
[1735440523358,16.17586631,194.37,194.27,25.9]
[1735440523582,23.776884,194.36,194.27,25.9]